fUST/lending_fUST_20250819
["ID","MTS","AMOUNT","RATE_DAILY","PERIOD"]
[380175936,1755593444147,-1000.0,0.00019726,2]
[380175937,1755593444156,-1000.0,0.00019726,2]
[380175938,1755593444167,-1000.0,0.00019726,2]
[380175939,1755593444176,-1000.0,0.00019726,2]
[380175940,1755593444186,-480.0,0.00019726,2]
[380175941,1755593444195,-1000.0,0.00019726,2]
[380175942,1755593444205,-1000.0,0.00019726,2]
[380175943,1755593444214,-1621.4,0.00019726,2]
[380175944,1755593444224,-480.0,0.00019726,2]
[380175945,1755593444233,-1000.0,0.00019726,2]
[380175946,1755593444243,-1000.0,0.00019726,2]
[380175947,1755593444252,-1000.0,0.00019726,2]
[380175948,1755593444261,-1000.0,0.00019726,2]
[380175949,1755593444271,-1000.0,0.00019726,2]
[380175950,1755593444281,-760.318765,0.00019726,2]
[380175951,1755593444290,-241.562406,0.00019726,2]
[380175952,1755593444299,-480.0,0.00019726,2]
[380175953,1755593444309,-151.0,0.00019726,2]
[380175954,1755593444321,-618.388685,0.00019726,2]
[380175955,1755593444330,-241.562406,0.00019726,2]
[380175956,1755593444339,-480.0,0.00019726,2]
[380175957,1755593444348,-151.0,0.00019726,2]
[380175958,1755593444358,-618.388685,0.00019726,2]
[380175959,1755593444367,-3242.66,0.00019726,2]
[380175960,1755593444376,-1334.4,0.00019726,2]
[380175961,1755593444387,-480.0,0.00019726,2]
[380175962,1755593444396,-412.2096394,0.00019726,2]
[380175963,1755593444405,-151.0,0.00019726,2]
[380175964,1755593444414,-1509.07,0.00019726,2]
[380175965,1755593444424,-674.88,0.00019726,2]
[380175966,1755593444433,-151.0,0.00019726,2]
[380175967,1755593444443,-480.0,0.00019726,2]
[380175968,1755593444452,-265.82725239,0.00019726,2]
[380175969,1755593444462,-480.0,0.00019726,2]
[380175970,1755593444472,-151.0,0.00019726,2]
[380175971,1755593444481,-480.0,0.00019726,2]
[380175972,1755593444490,-769.92,0.00019726,2]
[380175973,1755593444502,-480.0,0.00019726,2]
[380175974,1755593444511,-480.0,0.00019726,2]
[380175975,1755593444520,-980.92,0.00019726,2]
[380175976,1755593444530,-480.0,0.00019726,2]
[380175977,1755593444544,-480.0,0.00019726,2]
[380175978,1755593444553,-480.0,0.00019726,2]
[380175979,1755593444562,-832.49,0.00019726,2]
[380175980,1755593444574,-1174.48,0.00019726,2]
[380175981,1755593444585,-480.0,0.00019726,2]
[380175982,1755593444594,-1416.01,0.00019726,2]
[380175983,1755593444604,-480.0,0.00019726,2]
[380175984,1755593444615,-480.0,0.00019726,2]
[380175985,1755593444624,-480.0,0.00019726,2]
[380175986,1755593444634,-480.0,0.00019726,2]
[380175987,1755593444643,-480.0,0.00019726,2]
[380175988,1755593444653,-151.0,0.00019726,2]
[380175989,1755593444737,-874.65,0.00019726,2]
[380175990,1755593444747,-480.0,0.00019726,2]
[380175991,1755593444756,-702.48,0.00019726,2]
[380175992,1755593444765,-480.0,0.00019726,2]
[380175993,1755593444775,-480.0,0.00019726,2]
[380175994,1755593444784,-384.06795447,0.00019726,2]
[380175995,1755593444794,-480.0,0.00019726,2]
[380175996,1755593444803,-2990.97,0.00019726,2]
[380175997,1755593444812,-731.14,0.00019726,2]
[380175998,1755593444823,-480.0,0.00019726,2]
[380175999,1755593444832,-480.0,0.00019726,2]
[380176000,1755593444841,-1492.79,0.00019726,2]
[380176001,1755593444850,-480.0,0.00019726,2]
[380176002,1755593444859,-480.0,0.00019726,2]
[380176003,1755593444869,-218.893992,0.00019726,2]
[380176004,1755593444878,-881.07,0.00019726,2]
[380176005,1755593444888,-480.0,0.00019726,2]
[380176006,1755593444898,-238.741404,0.00019726,2]
[380176007,1755593444908,-480.0,0.00019726,2]
[380176008,1755593444917,-710.19,0.00019726,2]
[380176009,1755593444927,-480.0,0.00019726,2]
[380176010,1755593444936,-764.07,0.00019726,2]
[380176011,1755593444945,-480.0,0.00019726,2]
[380176012,1755593444955,-495.03014447,0.00019726,2]
[380176013,1755593444965,-423.21353042,0.00019726,2]
[380176014,1755593444974,-238.741404,0.00019726,2]
[380176015,1755593444983,-480.0,0.00019726,2]
[380176016,1755593444993,-548.67,0.00019762,2]
[380176017,1755593445003,-1016.40666314,0.00019773,2]
[380176018,1755593445012,-490.935053,0.00019863,2]
[380176019,1755593445022,-673.014,0.00019885,2]
[380176020,1755593445031,-5056.91133642,0.000199,2]
[380176021,1755593445041,-500.0,0.00019931,2]
[380176022,1755593445050,-548.67,0.00019972,2]
[380176023,1755593445060,-501.00130581,0.00019973,2]
[380176024,1755593445071,-500.0,0.00019973,2]
[380176025,1755593445080,-500.0,0.00019973,2]
[380176026,1755593445089,-500.0,0.00019973,2]
[380176027,1755593445098,-501.6669573,0.00019973,2]
[380176028,1755593445107,-503.06817163,0.00019973,2]
[380176029,1755593445116,-500.0,0.00019973,2]
[380176030,1755593445125,-157.70297908,0.00019973,2]
[380176031,1755593445134,-500.0,0.00019973,2]
[380176032,1755593445144,-500.0,0.00019973,2]
[380176033,1755593445154,-248.80528292,0.00019973,2]
[380176034,1755593445163,-158.68137963,0.00019973,2]
[380176035,1755593445173,-158.6785085,0.00019973,2]
[380176036,1755593445182,-501.62691226,0.00019973,2]
[380176037,1755593445191,-158.67083224,0.00019973,2]
[380176038,1755593445200,-500.0,0.00019973,2]
[380176039,1755593445210,-500.0,0.00019973,2]
[380176040,1755593445219,-500.0,0.00019973,2]
[380176041,1755593445228,-500.81789606,0.00019973,2]
[380176042,1755593445239,-500.0,0.00019973,2]
[380176043,1755593445248,-500.0,0.00019973,2]
[380176044,1755593445257,-500.0,0.00019973,2]
[380176045,1755593445267,-504.47468347,0.00019973,2]
[380176046,1755593445276,-500.0,0.00019973,2]
[380176047,1755593445286,-500.0,0.00019973,2]
[380176048,1755593445296,-501.22264959,0.00019973,2]
[380176049,1755593445305,-500.0,0.00019973,2]
[380176050,1755593445315,-322.989028,0.00019973,2]
[380176051,1755593445325,-151.0,0.00019973,2]
[380176052,1755593445335,-322.989028,0.00019973,2]
[380176053,1755593445344,-151.0,0.00019973,2]
[380176054,1755593445353,-151.0,0.00019973,2]
[380176055,1755593445363,-151.0,0.00019973,2]
[380176056,1755593445372,-204.015073,0.00019973,2]
[380176057,1755593445381,-204.015073,0.00019973,2]
[380176058,1755593445390,-151.0,0.00019973,2]
[380176059,1755593445399,-151.0,0.00019973,2]
[380176060,1755593445408,-151.0,0.00019973,2]
[380176061,1755593445417,-151.0,0.00019973,2]
[380176062,1755593445426,-2271.57361796,0.0001998,2]
[380176063,1755593445434,-548.67,0.00019989,2]
[380176064,1755593445443,-548.67,0.00019989,2]
[380176065,1755593445452,-548.67,0.00019989,2]
[380176066,1755593445461,-548.67,0.00019989,2]
[380176067,1755593445470,-548.8,0.00019989,2]
[380176068,1755593445479,-100000.0,0.0001999,2]
[380176069,1755593445489,-153.600496,0.0001999,2]
[380176070,1755593445499,-151.0,0.0001999,2]
[380176071,1755593445508,-151.0,0.0001999,2]
[380176072,1755593445518,-331.820489,0.0001999,2]
[380176073,1755593445527,-331.820489,0.0001999,2]
[380176074,1755593445541,-151.0,0.0001999,2]
[380176075,1755593445553,-151.0,0.0001999,2]
[380176076,1755593445563,-151.0,0.0001999,2]
[380176077,1755593445577,-151.854492,0.0001999,2]
[380176078,1755593445586,-151.0,0.0001999,2]
[380176079,1755593445596,-535.647314,0.0001999,2]
[380176080,1755593445606,-535.647314,0.0001999,2]
[380176081,1755593445617,-151.0,0.0001999,2]
[380176082,1755593445628,-151.0,0.0001999,2]
[380176083,1755593445638,-151.0,0.0001999,2]
[380176084,1755593445648,-151.0,0.0001999,2]
[380176085,1755593445657,-151.0,0.0001999,2]
[380176086,1755593445667,-151.833911,0.0001999,2]
[380176087,1755593445677,-151.0,0.0001999,2]
[380176088,1755593445686,-151.0,0.0001999,2]
[380176089,1755593445695,-194.443207,0.0001999,2]
[380176090,1755593445704,-151.0,0.0001999,2]
[380176091,1755593445714,-151.0,0.0001999,2]
[380176092,1755593445724,-194.443207,0.0001999,2]
[380176093,1755593445733,-151.0,0.0001999,2]
[380176094,1755593445742,-151.0,0.0001999,2]
[380176095,1755593445751,-151.0,0.0001999,2]
[380176096,1755593445760,-151.0,0.0001999,2]
[380176097,1755593445770,-151.0,0.0001999,2]
[380176098,1755593445779,-151.0,0.0001999,2]
[380176099,1755593445788,-151.0,0.0001999,2]
[380176100,1755593445798,-151.0,0.0001999,2]
[380176101,1755593445807,-151.0,0.0001999,2]
[380176102,1755593445817,-151.0,0.0001999,2]
[380176103,1755593445830,-241.562406,0.0001999,2]
[380176104,1755593445839,-151.0,0.0001999,2]
[380176105,1755593445849,-618.388685,0.0001999,2]
[380176106,1755593445859,-241.562406,0.0001999,2]
[380176108,1755593445869,-283.24388,0.0001999,2]
[380176109,1755593445878,-618.388685,0.0001999,2]
[380176111,1755593445888,-151.0,0.0001999,2]
[380176112,1755593445897,-261.80758,0.0001999,2]
[380176113,1755593445906,-151.0,0.0001999,2]
[380176114,1755593445915,-151.0,0.0001999,2]
[380176115,1755593445924,-238.741404,0.0001999,2]
[380176116,1755593445934,-238.741404,0.0001999,2]
[380176117,1755593445943,-1762.0,0.00019993,2]
[380176118,1755593445952,-1762.0,0.00019993,2]
[380176119,1755593445961,-1762.0,0.00019993,2]
[380176120,1755593445971,-1762.0,0.00019993,2]
[380176121,1755593445980,-1633.77047188,0.00019993,2]
[380176122,1755593445989,-329.86479115,0.00019993,2]
[380176123,1755593445999,-74097.14042245,0.0002,2]
[380176124,1755593446008,-500.0,0.0002,2]
[380176125,1755593446017,-500.0,0.0002,2]
[380176126,1755593446026,-500.0,0.0002,2]
[380176127,1755593446035,-24027.37631224,0.0002,2]
[380176128,1755593446044,-640.63833458,0.0002,5]
[380176129,1755593446053,-198.0,0.0002,2]
[380176130,1755593446062,-151.0,0.0002,2]
[380176131,1755593446074,-151.0,0.0002,2]
[380176132,1755593446083,-480.0,0.0002,2]
[380176133,1755593446093,-480.0,0.0002,2]
[380176134,1755593446171,-480.0,0.0002,2]
[380176135,1755593446181,-480.0,0.0002,2]
[380176136,1755593446190,-151.0,0.0002,2]
[380176137,1755593446201,-151.0,0.0002,2]
[380176138,1755593446210,-326.0,0.0002,2]
[380176139,1755593446220,-326.0,0.0002,2]
[380176140,1755593446229,-326.0,0.0002,2]
[380176141,1755593446238,-326.0,0.0002,2]
[380176142,1755593446247,-326.0,0.0002,2]
[380176143,1755593446257,-326.0,0.0002,2]
[380176144,1755593446266,-326.0,0.0002,2]
[380176145,1755593446276,-326.0,0.0002,2]
[380176146,1755593446285,-326.0,0.0002,2]
[380176147,1755593446294,-326.0,0.0002,2]
[380176148,1755593446303,-326.0,0.0002,2]
[380176149,1755593446313,-151.0,0.0002,2]
[380176150,1755593446325,-151.0,0.0002,2]
[380176151,1755593446335,-151.0,0.0002,2]
[380176152,1755593446346,-480.0,0.0002,2]
[380176153,1755593446355,-708.1,0.0002,2]
[380176154,1755593446364,-151.0,0.0002,2]
[380176155,1755593446374,-151.744069,0.0002,2]
[380176156,1755593446383,-480.0,0.0002,2]
[380176157,1755593446392,-480.0,0.0002,2]
[380176158,1755593446402,-151.0,0.0002,2]
[380176159,1755593446411,-151.0,0.0002,7]
[380176160,1755593446421,-151.0,0.0002,7]
[380176161,1755593446430,-151.0,0.0002,7]
[380176162,1755593446439,-154.926989,0.0002,7]
[380176163,1755593446448,-151.0,0.0002,2]
[380176164,1755593446458,-222.964643,0.0002,4]
[380176165,1755593446467,-480.0,0.0002,2]
[380176166,1755593446477,-480.0,0.0002,2]
[380176167,1755593446486,-747.5,0.0002,2]
[380176168,1755593446495,-480.0,0.0002,2]
[380176169,1755593446504,-1342.37,0.0002,2]
[380176170,1755593446514,-151.0,0.0002,2]
[380176171,1755593446523,-331.820489,0.0002,2]
[380176172,1755593446532,-695.03,0.0002,2]
[380176173,1755593446547,-331.820489,0.0002,2]
[380176174,1755593446556,-151.0,0.0002,2]
[380176175,1755593446566,-151.0,0.0002,2]
[380176176,1755593446576,-480.0,0.0002,2]
[380176177,1755593446586,-480.0,0.0002,2]
[380176178,1755593446595,-510.91,0.0002,2]
[380176179,1755593446605,-480.0,0.0002,2]
[380176180,1755593446614,-151.0,0.0002,2]
[380176181,1755593446625,-181.95187838,0.0002,2]
[380176182,1755593446635,-151.0,0.0002,2]
[380176183,1755593446645,-480.0,0.0002,2]
[380176184,1755593446654,-151.0,0.0002,2]
[380176185,1755593446663,-480.0,0.0002,2]
[380176186,1755593446672,-322.989028,0.0002,2]
[380176187,1755593446681,-151.0,0.0002,2]
[380176188,1755593446691,-322.989028,0.0002,2]
[380176189,1755593446699,-480.0,0.0002,2]
[380176190,1755593446709,-480.0,0.0002,2]
[380176191,1755593446719,-463.79181448,0.0002,2]
[380176192,1755593446728,-151.0,0.0002,2]
[380176193,1755593446737,-151.0,0.0002,2]
[380176194,1755593446748,-151.0,0.0002,2]
[380176195,1755593446766,-204.015073,0.0002,2]
[380176196,1755593446776,-480.0,0.0002,2]
[380176197,1755593446786,-204.015073,0.0002,2]
[380176198,1755593446795,-480.0,0.0002,2]
[380176199,1755593446804,-153.196318,0.0002,2]
[380176200,1755593446814,-1004.1,0.0002,2]
[380176201,1755593446826,-151.0,0.0002,2]
[380176202,1755593446836,-151.0,0.0002,2]
[380176203,1755593446845,-440.0,0.0002,2]
[380176204,1755593446854,-480.0,0.0002,2]
[380176205,1755593446863,-480.0,0.0002,2]
[380176206,1755593446872,-514.28,0.0002,2]
[380176207,1755593446881,-480.0,0.0002,2]
[380176208,1755593446890,-849.3,0.0002,2]
[380176209,1755593446899,-543.12,0.0002,2]
[380176210,1755593446908,-151.0,0.0002,2]
[380176211,1755593446917,-1000.0,0.0002,2]
[380176212,1755593446926,-203.25529554,0.0002,2]
[380176213,1755593446935,-480.0,0.0002,2]
[380176214,1755593446944,-480.0,0.0002,2]
[380176215,1755593446953,-480.0,0.0002,2]
[380176216,1755593446962,-480.0,0.0002,2]
[380176217,1755593446971,-535.647314,0.0002,2]
[380176218,1755593446981,-535.647314,0.0002,2]
[380176219,1755593446990,-161.0,0.0002,2]
[380176220,1755593447000,-161.0,0.0002,2]
[380176221,1755593447010,-161.0,0.0002,2]
[380176222,1755593447019,-168.28544289,0.0002,2]
[380176223,1755593447028,-480.0,0.0002,2]
[380176224,1755593447037,-151.0,0.0002,2]
[380176225,1755593447046,-151.0,0.0002,2]
[380176226,1755593447056,-151.0,0.0002,2]
[380176227,1755593447065,-151.0,0.0002,2]
[380176228,1755593447077,-151.0,0.0002,2]
[380176229,1755593447087,-505.0,0.0002,2]
[380176230,1755593447096,-151.0,0.0002,2]
[380176231,1755593447105,-557.31,0.0002,2]
[380176232,1755593447114,-151.0,0.0002,2]
[380176233,1755593447123,-440.0,0.0002,2]
[380176234,1755593447132,-696.53,0.0002,2]
[380176235,1755593447142,-2007.54,0.0002,2]
[380176236,1755593447151,-480.0,0.0002,2]
[380176237,1755593447160,-3410.87,0.0002,2]
[380176238,1755593447169,-180.40594968,0.0002,2]
[380176239,1755593447178,-160.0,0.0002,3]
[380176240,1755593447187,-150.187858,0.0002,2]
[380176241,1755593447196,-197.43721432,0.0002,2]
[380176242,1755593447206,-151.0,0.0002,2]
[380176243,1755593447215,-151.0,0.0002,2]
[380176244,1755593447224,-480.0,0.0002,2]
[380176245,1755593447233,-194.443207,0.0002,2]
[380176246,1755593447243,-151.0,0.0002,2]
[380176247,1755593447251,-151.0,0.0002,2]
[380176248,1755593447261,-194.443207,0.0002,2]
[380176249,1755593447271,-151.0,0.0002,2]
[380176250,1755593447280,-480.0,0.0002,2]
[380176251,1755593447290,-154.030151,0.0002,2]
[380176252,1755593447299,-480.0,0.0002,2]
[380176253,1755593447308,-1270.09,0.0002,2]
[380176254,1755593447318,-480.0,0.0002,2]
[380176255,1755593447328,-480.0,0.0002,2]
[380176256,1755593447337,-822.37,0.0002,2]
[380176257,1755593447347,-151.0,0.0002,2]
[380176258,1755593447356,-151.0,0.0002,2]
[380176259,1755593447366,-1629.67,0.0002,2]
[380176260,1755593447375,-282.391811,0.0002,2]
[380176261,1755593447384,-480.0,0.0002,2]
[380176262,1755593447393,-1246.1,0.0002,2]
[380176263,1755593447402,-813.04,0.0002,2]
[380176264,1755593447411,-382.82287181,0.0002,2]
[380176265,1755593447421,-480.0,0.0002,2]
[380176266,1755593447497,-647.44,0.0002,2]
[380176267,1755593447507,-480.0,0.0002,2]
[380176268,1755593447516,-480.0,0.0002,2]
[380176269,1755593447526,-582.9200745,0.0002,2]
[380176270,1755593447537,-480.0,0.0002,2]
[380176271,1755593447547,-482.12760775,0.0002,2]
[380176272,1755593447556,-576.17,0.0002,2]
[380176273,1755593447568,-1057.36,0.0002,2]
[380176274,1755593447579,-480.0,0.0002,2]
[380176275,1755593447589,-526.96,0.0002,2]
[380176276,1755593447598,-480.0,0.0002,2]
[380176277,1755593447607,-151.0,0.0002,2]
[380176278,1755593447617,-480.0,0.0002,2]
[380176279,1755593447627,-786.22,0.0002,2]
[380176280,1755593447637,-151.0,0.0002,2]
[380176281,1755593447646,-151.0,0.0002,2]
[380176282,1755593447655,-202.47504064,0.0002,2]
[380176283,1755593447664,-511.37,0.0002,2]
[380176284,1755593447674,-480.0,0.0002,2]
[380176285,1755593447684,-480.0,0.0002,2]
[380176286,1755593447694,-645.0,0.0002,2]
[380176287,1755593447703,-480.0,0.0002,2]
[380176288,1755593447713,-480.0,0.0002,2]
[380176289,1755593447722,-786.05,0.0002,2]
[380176290,1755593447734,-480.0,0.0002,2]
[380176291,1755593447744,-2051.21,0.0002,2]
[380176292,1755593447753,-6924.41,0.0002,2]
[380176293,1755593447762,-282.83433387,0.0002,2]
[380176294,1755593447772,-6698.69,0.0002,2]
[380176295,1755593447781,-2277.25,0.0002,2]
[380176296,1755593447790,-480.0,0.0002,2]
[380176297,1755593447800,-2311.94,0.0002,2]
[380176298,1755593447810,-480.0,0.0002,2]
[380176299,1755593447820,-482.71,0.0002,2]
[380176300,1755593447830,-480.0,0.0002,2]
[380176301,1755593447839,-480.0,0.0002,2]
[380176302,1755593447848,-938.96,0.0002,2]
[380176303,1755593447858,-480.0,0.0002,2]
[380176304,1755593447867,-400.0,0.0002,2]
[380176305,1755593447877,-1621.4,0.0002,2]
[380176306,1755593447886,-480.0,0.0002,2]
[380176307,1755593447895,-431.05364656,0.0002,2]
[380176308,1755593447904,-241.562406,0.0002,2]
[380176309,1755593447913,-151.0,0.0002,2]
[380176310,1755593447922,-618.388685,0.0002,2]
[380176311,1755593447931,-480.0,0.0002,2]
[380176312,1755593447941,-241.562406,0.0002,2]
[380176313,1755593447950,-618.388685,0.0002,2]
[380176314,1755593447959,-3242.66,0.0002,2]
[380176315,1755593447968,-1334.4,0.0002,2]
[380176316,1755593447977,-480.0,0.0002,2]
[380176317,1755593447987,-1509.07,0.0002,2]
[380176318,1755593447996,-674.88,0.0002,2]
[380176319,1755593448005,-480.0,0.0002,2]
[380176320,1755593448014,-480.0,0.0002,2]
[380176321,1755593448024,-480.0,0.0002,2]
[380176322,1755593448034,-151.0,0.0002,2]
[380176323,1755593448044,-769.92,0.0002,2]
[380176324,1755593448053,-528.04292298,0.0002,2]
[380176325,1755593448062,-199.32892455,0.0002,2]
[380176326,1755593448073,-980.92,0.0002,2]
[380176327,1755593448082,-480.0,0.0002,2]
[380176328,1755593448092,-832.49,0.0002,2]
[380176329,1755593448102,-1174.48,0.0002,2]
[380176330,1755593448111,-480.0,0.0002,2]
[380176331,1755593448122,-1416.01,0.0002,2]
[380176332,1755593448132,-480.0,0.0002,2]
[380176333,1755593448143,-480.0,0.0002,2]
[380176334,1755593448153,-480.0,0.0002,2]
[380176335,1755593448163,-480.0,0.0002,2]
[380176336,1755593448173,-480.0,0.0002,2]
[380176337,1755593448183,-874.65,0.0002,2]
[380176338,1755593448193,-480.0,0.0002,2]
[380176339,1755593448203,-702.48,0.0002,2]
[380176340,1755593448213,-480.0,0.0002,2]
[380176341,1755593448223,-480.0,0.0002,2]
[380176342,1755593448233,-480.0,0.0002,2]
[380176343,1755593448244,-2990.97,0.0002,2]
[380176344,1755593448254,-731.14,0.0002,2]
[380176345,1755593448263,-480.0,0.0002,2]
[380176346,1755593448273,-480.0,0.0002,2]
[380176347,1755593448282,-480.0,0.0002,2]
[380176348,1755593448293,-1492.79,0.0002,2]
[380176349,1755593448303,-155.0,0.0002,2]
[380176350,1755593448313,-881.07,0.0002,2]
[380176351,1755593448326,-155.0,0.0002,2]
[380176352,1755593448336,-480.0,0.0002,2]
[380176353,1755593448345,-480.0,0.0002,2]
[380176354,1755593448354,-238.741404,0.0002,2]
[380176355,1755593448363,-710.19,0.0002,2]
[380176356,1755593448373,-445.31885404,0.0002,2]
[380176357,1755593448382,-480.0,0.0002,2]
[380176358,1755593448392,-764.07,0.0002,2]
[380176359,1755593448401,-238.741404,0.0002,2]
[380176360,1755593448410,-480.0,0.0002,2]
[380176361,1755593448419,-395.0,0.00020003,2]
[380176362,1755593448429,-1000.0,0.00020021,2]
[380176363,1755593448438,-223.65181965,0.00020027,2]
[380176364,1755593448448,-9000.0,0.00020042,2]
[380176365,1755593448457,-500.0,0.00020089,2]
[380176366,1755593448466,-11000.0,0.00020098,2]
[380176367,1755593448476,-322.989028,0.00020098,2]
[380176368,1755593448485,-151.0,0.00020098,2]
[380176369,1755593448494,-322.989028,0.00020098,2]
[380176370,1755593448504,-151.0,0.00020098,2]
[380176371,1755593448513,-151.0,0.00020098,2]
[380176372,1755593448523,-151.0,0.00020098,2]
[380176373,1755593448532,-204.015073,0.00020098,2]
[380176374,1755593448545,-204.015073,0.00020098,2]
[380176375,1755593448554,-151.0,0.00020098,2]
[380176376,1755593448564,-151.0,0.000201,3]
[380176377,1755593448576,-1706.9885744,0.00020104,2]
[380176378,1755593448770,-55.0114256,0.00020104,2]
[380176379,1755593448780,-1752.0,0.00020104,2]
[380176380,1755593448790,-223.65181965,0.0002011,2]
[380176381,1755593448799,-3000.0,0.00020146,2]
[380176382,1755593448809,-972.0,0.00020189,2]
[380176383,1755593448819,-637.0,0.00020189,2]
[380176384,1755593448828,-2204.832,0.00020189,2]
[380176385,1755593448837,-408.0,0.00020189,2]
[380176386,1755593448847,-250.0,0.00020189,2]
[380176387,1755593448856,-151.0,0.00020198,2]
[380176388,1755593448865,-6000.0,0.00020198,2]
[380176389,1755593448875,-151.0,0.000202,4]
[380176390,1755593448885,-151.0,0.000202,3]
[380176391,1755593448895,-223.65181965,0.00020219,2]
[380176392,1755593448904,-168.0,0.00020219,2]
[380176393,1755593448914,-160.0,0.00020233,2]
[380176394,1755593448924,-294.0,0.00020252,2]
[380176395,1755593448934,-272.3,0.00020255,2]
[380176396,1755593448944,-1503.9280423,0.00020268,2]
[380176397,1755593448954,-1500.0,0.00020268,2]
[380176398,1755593448964,-426.6049207,0.00020273,2]
[380176399,1755593448974,-47659.87465226,0.00020273,2]
[380176400,1755593448984,-151.538521,0.00020273,2]
[380176401,1755593448993,-480.0,0.00020273,2]
[380176402,1755593449004,-480.0,0.00020273,2]
[380176403,1755593449014,-480.0,0.00020273,2]
[380176404,1755593449023,-151.0,0.00020273,2]
[380176405,1755593449032,-151.0,0.00020273,2]
[380176406,1755593449042,-480.0,0.00020273,2]
[380176407,1755593449053,-708.1,0.00020273,2]
[380176408,1755593449063,-151.0,0.00020273,2]
[380176409,1755593449073,-480.0,0.00020273,2]
[380176410,1755593449082,-151.163807,0.00020273,2]
[380176411,1755593449091,-151.0,0.00020273,2]
[380176412,1755593449100,-480.0,0.00020273,2]
[380176413,1755593449109,-480.0,0.00020273,2]
[380176414,1755593449119,-747.5,0.00020273,2]
[380176415,1755593449128,-480.0,0.00020273,2]
[380176416,1755593449138,-1342.37,0.00020273,2]
[380176417,1755593449148,-151.0,0.00020273,2]
[380176418,1755593449158,-331.820489,0.00020273,2]
[380176419,1755593449168,-695.03,0.00020273,2]
[380176420,1755593449177,-331.820489,0.00020273,2]
[380176421,1755593449186,-151.0,0.00020273,2]
[380176422,1755593449195,-183.362902,0.00020273,2]
[380176423,1755593449204,-480.0,0.00020273,2]
[380176424,1755593449214,-480.0,0.00020273,2]
[380176425,1755593449223,-510.91,0.00020273,2]
[380176426,1755593449233,-480.0,0.00020273,2]
[380176427,1755593449241,-152.51292251,0.00020273,2]
[380176428,1755593449251,-480.0,0.00020273,2]
[380176429,1755593449260,-480.0,0.00020273,2]
[380176430,1755593449269,-480.0,0.00020273,2]
[380176431,1755593449278,-480.0,0.00020273,2]
[380176432,1755593449287,-480.0,0.00020273,2]
[380176433,1755593449296,-1004.1,0.00020273,2]
[380176434,1755593449306,-480.0,0.00020273,2]
[380176435,1755593449315,-480.0,0.00020273,2]
[380176436,1755593449328,-514.28,0.00020273,2]
[380176437,1755593449337,-480.0,0.00020273,2]